Cogmind - Beta 15 @@@ ROGUE MODE // 2025.05.06 @ 22:38:33 Player: AnotherZach Result: Destroyed by DAS Turret with DAS Cannon Performance ------------- Evolutions (0) 0 Regions Visited (3) 600 Robots Destroyed (29) 145 Value Destroyed (557) 557 Prototype IDs (23) 460 Alien Tech Used (0) 0 Bonus (300) 300 TOTAL SCORE: 2062 Bonus ------- Aligned with FarCom 300 Cogmind --------- Core Integrity 0/250 Matter 234/300 Energy 99/100 System Corruption 0% Temperature Cool (0) Movement Core (100) Ox1 Location -10/Exiles Parts ------- > --- POWER (1) -------- (None) > --- PROPULSION (2) --- (None) > --- UTILITY (2) ------ Small Storage Unit > --- WEAPON (2) ------- (None) > --- INVENTORY (8) ---- Light Ion Engine High-capacity Storage Unit Medium Matter Pod (0) Structural Scanner Sensor Array Improved Terrain Scanner Seismic Detector Peak State ------------ > --- POWER ------------ Ion Engine > --- PROPULSION ------- Light Treads Light Treads > --- UTILITY ---------- Small Storage Unit Signal Interpreter > --- WEAPON ----------- Assault Rifle Field Lobotomy Kit > --- INVENTORY -------- Light Ion Engine High-capacity Storage Unit Medium Matter Pod Structural Scanner Sensor Array Improved Terrain Scanner Seismic Detector [Rating: 16] Favorites ----------- Power Ion Engine Engine Ion Engine Propulsion Light Treads Treads Light Treads Leg Aluminum Leg Utility Small Storage Unit Storage Small Storage Unit Processor Signal Interpreter Protection Light Armor Plating Weapon Grenade Launcher Energy Gun EM Pulse Gun Ballistic Gun Assault Rifle Launcher Grenade Launcher Special Weapon Field Lobotomy Kit Build | -11 -10 -10 -10 ------- Run | Yrd Mat Min Exi Slots Evolved . | . . . . Power . | . . . . Propulsion . | . . . . Utility . | . . . . Weapon . | . . . . Parts Attached 18 | 6 11 . 1 Power 2 | 1 1 . . Engine 2 | 1 1 . . Core . | . . . . Reactor . | . . . . Propulsion 7 | 2 5 . . Treads 4 | 2 2 . . Leg 3 | . 3 . . Wheel . | . . . . Hover . | . . . . Flight . | . . . . Utility 3 | 1 2 . . Device . | . . . . Storage 1 | 1 . . . Processor 1 | . 1 . . Hackware . | . . . . Protection 1 | . 1 . . Artifact . | . . . . Weapon 6 | 2 3 . 1 Energy Gun 1 | 1 . . . Energy Cannon . | . . . . Ballistic Gun 3 | 1 2 . . Ballistic Cannon . | . . . . Launcher 1 | . 1 . . Special Weapon 1 | . . . 1 Impact Weapon . | . . . . Slashing Weapon . | . . . . Piercing Weapon . | . . . . Special Melee Weapon . | . . . . Unidentified Prototypes . | . . . . Parts Lost 7 | . . . 7 Power 1 | . . . 1 Propulsion 2 | . . . 2 Utility 1 | . . . 1 Weapon 3 | . . . 3 Highest Loss Streak 7 | . . . 7 To Critical Strikes . | . . . . Average Backups 7 | 3 7 8 7 Power . | . 1 1 1 Propulsion 1 | 2 2 1 . Utility 4 | . 3 6 6 Weapon . | . . . . Tool/Special . | . . . . Unused Backups 12 | . 5 . 7 Power 1 | . . . 1 Propulsion 4 | . 4 . . Utility 7 | . 1 . 6 Weapon . | . . . . Tool/Special . | . . . . Average Slot Usage (%) 98 | . 98 100 96 Engine 13 | . 14 14 13 Treads 22 | . 18 28 26 Leg 4 | . 9 . . Storage 14 | . 14 14 14 Processor 9 | . 3 14 13 Protection 4 | . 9 . . Energy Gun 3 | . 7 . . Ballistic Gun 14 | . 14 14 13 Launcher 10 | . 6 14 13 Peak Build Rating 16 | 6 8 8 16 Average Rating 7 | 4 7 8 8 On Entrance 5 | . 6 8 8 Naked Turns . | . . . . Heaviest Build 20 | 13 17 15 20 Greatest Support 40 | 40 40 40 40 Greatest Overweight (x) 4 | . . . 4 Average Overweight (x) . | . . . . Largest Inventory Capacity 8 | 8 8 8 8 Average Capacity 7 | 7 8 8 8 Most Carried 8 | 6 8 8 8 Average Carried 7 | 4 7 8 7 Final Capacity 8 | 8 8 8 8 Final Carried 8 | 6 8 8 7 Class Distribution -------------------- 100% | Mutant Dominant Class ---------------- Mutant | -10/Materials Mutant | -10/Mines Mutant | -10/Exiles Resources | -11 -10 -10 -10 ----------- Run | Yrd Mat Min Exi Matter Collected 499 | 100 388 3 8 Remotely . | . . . . Salvage Created 748 | 60 662 26 . Parts 60 | 6 46 8 . Haulers Intercepted 2 | . 2 . . Recyclers Shooed 1 | . 1 . . Parts Field Recycled . | . . . . Retrieved Matter . | . . . . Parts Self-Destructed . | . . . . Prevented . | . . . . Kills | -11 -10 -10 -10 ------- Run | Yrd Mat Min Exi Combat Hostiles Destroyed 18 | . 15 3 . Guns 3 | . 2 1 . AOE 15 | . 13 2 . Classes Destroyed 8 | 1 7 . . Worker 2 | . 2 . . Builder 1 | . 1 . . Tunneler 2 | 2 . . . Hauler 2 | . 2 . . Recycler 2 | . 2 . . Operator 2 | . 2 . . Swarmer 6 | . 3 3 . Grunt 12 | . 12 . . Best Kill Streak 8 | 1 8 3 . Combat Bots Only 6 | . 6 3 . Max Kills in Single Turn 4 | 1 4 3 . Gunslinging . | . . . . Exploded 3 | . 3 2 . Melee . | . . . . Uniques/NPCs Destroyed . | . . . . Combat | -11 -10 -10 -10 -------- Run | Yrd Mat Min Exi Hostile Shots Fired 93 | . 68 3 22 Missed 26 | . 22 2 2 Hits 67 | . 46 1 20 Projectile 67 | . 46 1 20 Critical Strikes 1 | . . . 1 Damage Taken 1337 | . 558 6 773 Core 280 | . 85 6 189 Absorbed by Shields . | . . . . Core Remaining (%) 100 | 100 . . . Volleys Fired 48 | 6 39 1 2 Largest 2 | 2 2 2 2 Hottest 60 | 60 60 50 20 Shots Fired 81 | 12 64 2 3 Gun 66 | 12 51 1 2 Cannon . | . . . . Launcher 14 | . 13 1 . Special 1 | . . . 1 Kinetic 45 | 6 36 1 2 Thermal . | . . . . Explosive 14 | . 13 1 . Electromagnetic 21 | 6 15 . . Robot Hit Streak 9 | 5 9 . 2 Robot Miss Streak 2 | 1 2 . 1 Penetration Max . | . . . . Secondary Targets . | . . . . Shots Hit Robots 50 | 9 39 . 2 Core Hits 45 | 3 39 3 . Critical Kills . | . . . . Critical Parts Destroyed . | . . . . Critical Strikes . | . . . . Melee Attacks . | . . . . Impact . | . . . . Slashing . | . . . . Piercing . | . . . . Sneak Attacks . | . . . . Combat Hostiles . | . . . . Follow-up Attacks . | . . . . Damage Inflicted 1474 | 102 1270 88 14 Guns 441 | 102 313 12 14 Cannons . | . . . . Explosions 1030 | . 954 76 . Melee . | . . . . Ramming 3 | . 3 . . Kinetic 260 | 34 200 12 14 Thermal . | . . . . Explosive 1030 | . 954 76 . Electromagnetic 181 | 68 113 . . Impact . | . . . . Slashing . | . . . . Piercing . | . . . . Highest Corruption . | . . . . Average Corruption . | . . . . Corruption Purged . | . . . . Corruption Blocked . | . . . . Overload Shots . | . . . . Overflow Damage 16 | . 16 . . Projectiles . | . . . . Explosions 16 | . 16 . . Melee . | . . . . Knockbacks . | . . . . Impact . | . . . . Kinetic . | . . . . Secondary . | . . . . Self-Inflicted Damage 55 | . 55 . . Shots 3 | . 3 . . Rammed 1 | . 1 . . Targets Rammed 1 | . 1 . . Kicked . | . . . . Crushed . | . . . . Highest Temperature 115 | 40 115 . . Average Temperature 33 | 17 35 . . Received Heat Transfer 264 | . 264 . . Siege Activations . | . . . . Martial Activations . | . . . . Shielding Activations . | . . . . Robots Disrupted . | . . . . Combat Hostiles . | . . . . Robots Corrupted . | . . . . Combat Hostiles . | . . . . Parts Fried 3 | 1 2 . . Impact Corruptions . | . . . . Robots Melted . | . . . . Combat Hostiles . | . . . . Parts Melted . | . . . . Heat Transferred . | . . . . Parts Sabotaged . | . . . . Parts Stolen . | . . . . Parts Stripped . | . . . . Power Chain Reactions . | . . . . Alert | -11 -10 -10 -10 ------- Run | Yrd Mat Min Exi Maximum Alert Level 1 | . 1 . . Low Security (%) 78 | 100 64 100 . Level 1 21 | . 35 . . Level 2 . | . . . . Level 3 . | . . . . Level 4 . | . . . . Level 5 . | . . . . High Security . | . . . . Max Security . | . . . . Peak Influence 394 | 5 394 186 . Initial 143 | . . 143 . Average 109 | 1 122 137 . Influence Increases 639 | 10 546 83 . Destroy 0b10 Robot/C 360 | . 300 60 . Destroy 0b10 Robot/NC 55 | 10 45 . . Destroy Leader 74 | . 64 10 . Allied During Kill 4 | . . 4 . Successful Hack 8 | . 8 . . Select Force Hacks 30 | . 30 . . Disable Machine 30 | . 30 . . Destroy Structure 78 | . 69 9 . Influence Decreases 639 | 10 177 336 116 Entered New Map 342 | . . 226 116 Time Decay 297 | 10 177 110 . Squads Dispatched 6 | . 6 . . Investigation 4 | . 4 . . Extermination . | . . . . Reinforcement 2 | . 2 . . Assault . | . . . . Garrison . | . . . . Intercept . | . . . . Searches Triggered . | . . . . Construction Impeded . | . . . . Haulers Reinforced . | . . . . Active Scanning Responses . | . . . . Cargo Convoy Interrupts . | . . . . Stealth | -11 -10 -10 -10 --------- Run | Yrd Mat Min Exi Distress Signals . | . . . . Communications Jammed . | . . . . Distress Signals . | . . . . Times Spotted 29 | . 19 3 7 Peak Tracking Total 12 | . 6 3 12 Tactical Retreats . | . . . . Traps | -11 -10 -10 -10 ------- Run | Yrd Mat Min Exi Traps Triggered 1 | . 1 . . Indirectly . | . . . . Trap Hack Attempts . | . . . . Triggered . | . . . . Disarmed . | . . . . Reprogrammed . | . . . . Reused . | . . . . Traps Extracted . | . . . . Installed . | . . . . Triggered . | . . . . Machines | -11 -10 -10 -10 ---------- Run | Yrd Mat Min Exi Machines Disabled 2 | . 2 . . Max in Single Turn 1 | . 1 . . Machines Repaired . | . . . . Machines Dismantled . | . . . . Machines Sabotaged . | . . . . Overloaded Fab Kills . | . . . . Hacking | -11 -10 -10 -10 --------- Run | Yrd Mat Min Exi Machines Accessed 7 | . 5 . 2 Terminals 4 | . 4 . . Fabricators . | . . . . Repair Stations . | . . . . Recycling Units 1 | . 1 . . Scanalyzers . | . . . . Garrison Access . | . . . . Total Hacks 15 | . 13 . 2 Successful 7 | . 5 . 2 Failed 8 | . 8 . . Catastrophic 1 | . 1 . . Database Lockouts . | . . . . Manual 12 | . 11 . 1 Terminals 10 | . 10 . . Fabricators . | . . . . Repair Stations . | . . . . Recycling Units 3 | . 3 . . Scanalyzers . | . . . . Garrison Access . | . . . . Terminal Hacks 5 | . 3 . 2 Record 2 | . 1 . 1 Robot Schematic 1 | . 1 . . Branch Access Points 1 | . 1 . . Proto ID Catalog 1 | . . . 1 Fabricator Hacks . | . . . . Repair Station Hacks . | . . . . Recycling Unit Hacks 1 | . 1 . . Retrieve Components 1 | . 1 . . Scanalyzer . | . . . . Garrison Access Hacks . | . . . . Unauthorized Hacks 1 | . 1 . . Terminals . | . . . . Fabricators . | . . . . Repair Stations . | . . . . Recycling Units 1 | . 1 . . Tunnel 1 | . 1 . . Scanalyzers . | . . . . Garrison Access . | . . . . Data Cores Recovered . | . . . . Used . | . . . . Hacking Detections 3 | . 3 . . Full Trace Events 2 | . 2 . . Feedback Events . | . . . . Feedback Blocked . | . . . . Robot Schematics Acquired 1 | . 1 . . Robots Built . | . . . . Authchips . | . . . . Time . | . . . . Total Robot Build Rating . | . . . . Part Schematics Acquired . | . . . . Parts Built . | . . . . Authchips . | . . . . Time . | . . . . Total Part Build Rating . | . . . . Parts Repaired . | . . . . Time . | . . . . Parts Recycled . | . . . . Recycled Matter . | . . . . Retrieved Matter . | . . . . Retrieved Components . | . . . . Parts Scanalyzed . | . . . . Part Schematics Acquired . | . . . . Parts Damaged . | . . . . Bothacking | -11 -10 -10 -10 ------------ Run | Yrd Mat Min Exi Used RIF Installer . | . . . . Robots Hacked . | . . . . Non-combat . | . . . . Combat . | . . . . Robot Hacks Applied . | . . . . Relay Couplers Released . | . . . . Fabnet Peak Effective % . | . . . . Robots Rewired . | . . . . Allies Hacked . | . . . . Hacks Repelled . | . . . . Allies | -11 -10 -10 -10 -------- Run | Yrd Mat Min Exi Total Allies 1 | . . 1 . Largest Group 1 | . . 1 1 Highest-Rated Group 31 | . . 31 31 Highest-Rated Ally 31 | . . 31 31 Total Orders . | . . . . Ally Attacks . | . . . . Total Damage . | . . . . Kills . | . . . . Allies Corrupted . | . . . . Allies Melted . | . . . . Intel | -11 -10 -10 -10 ------- Run | Yrd Mat Min Exi Active Infowar (turns) . | . . . . Robot Analysis Total . | . . . . Derelict Logs Recovered . | . . . . Drone Launches . | . . . . Drone Recoveries . | . . . . Exploration | -11 -10 -10 -10 ------------- Run | Yrd Mat Min Exi Turns Passed 1330 | 127 566 234 403 Spaces Moved 754 | 62 304 144 244 Core 11 | 3 . . 8 Treads 621 | 59 182 144 236 Legs 122 | . 122 . . Wheels . | . . . . Hover . | . . . . Flight . | . . . . Fastest Speed 50 | 50 120 160 100 Average Speed 153 | 154 143 160 161 Slowest Speed 250 | 160 160 160 250 Overloaded Moves . | . . . . Propulsion Burnouts . | . . . . Robots Hopped . | . . . . Potential Cave-ins . | . . . . Cave-ins Triggered . | . . . . Exploration Rate (%) 32 | 4 43 22 60 Regions Visited 3 Branch Regions 2 Pre-discovered Areas 2 | . 1 . 1 Known Exits Taken 2 | . 1 1 . Unknown Exits Taken 1 | 1 . . . Scrap Searched . | . . . . Spaces Dug . | . . . . Terrain Destroyed 78 | . 69 9 . Melee . | . . . . Projectile . | . . . . AOE 78 | . 69 9 . Terrain Rammed . | . . . . Walls Destroyed . | . . . . Machines Disabled . | . . . . Actions | -11 -10 -10 -10 --------- Run | Yrd Mat Min Exi Total 855 | 79 379 146 251 Wait 2 | . . 2 . Move 751 | 61 303 143 244 Hop . | . . . . Pick Up 17 | 6 10 . 1 Fast Attach 12 | 6 5 . 1 Attach 3 | . 2 . 1 Detach . | . . . . Swap 4 | . 4 . . Drop 17 | . 15 . 2 Fire 48 | 6 39 1 2 Melee . | . . . . Ram . | . . . . Kick . | . . . . Crush 1 | . 1 . . Escape Stasis . | . . . . Rewire . | . . . . Trap . | . . . . Miscellaneous . | . . . . Route ------- -11/Scrapyard -10/Materials (discovered 2 exits: *Min x2) -10/Mines -10/Exiles History --------- Turn | Location | Event 15 | -11/Scrapyard | Discovered new exit (range 16) 128 | -11/Scrapyard | Entered Materials 305 | -10/Materials | Build established: Mutant 572 | -10/Materials | Identified exit to Mines 694 | -10/Materials | Entered Mines 697 | -10/Mines | Received a Mining Laser from a helpful Derelict 707 | -10/Mines | Assembled infested the area 846 | -10/Mines | Met a Derelict bent on vengeance 922 | -10/Mines | Discovered new exit (range 5) 927 | -10/Mines | Identified exit to Exiles 928 | -10/Mines | Entered Exiles 928 | -10/Exiles | Accompanied by 1 ally 968 | -10/Exiles | Met 8R-AWN 996 | -10/Exiles | Met EX-HEX 1044 | -10/Exiles | Met EX-BIN 1071 | -10/Exiles | Aligned with FarCom system 1072 | -10/Exiles | Given EX-Vault access code 1111 | -10/Exiles | Opened EX-Vault 1123 | -10/Exiles | Found Field Lobotomy Kit 1156 | -10/Exiles | Warned to stay clear of 0b10 Research branches 1202 | -10/Exiles | Met EX-DEC 1223 | -10/Exiles | Learned location of Zion (-7) 1304 | -10/Exiles | Attacked by the Exiles 1318 | -10/Exiles | Core integrity fell below 50% 1320 | -10/Exiles | Core integrity fell below 20% 1331 | -10/Exiles | Destroyed by DAS Turret with DAS Cannon Last Messages --------------- 01304_ EXILES: Hostile robot within lab perimeter. Defensive protocols time, folks! 01306_ EX-DEC: "Let's see what this bad boy can do..." 01306_ EX-DEC deploys DAS Turret. 01306_ Grenade Launcher destroyed. 01309_ EX-DEC unaffected by assimilation attempt. 01312_ Lgt. Treads destroyed. 01315_ Ion Engine destroyed. 01315_ Lgt. Treads destroyed. 01316_ EX-BIN: "I just want to science!" 01317_ Signal Interpreter destroyed. 01317_ Critical hit (Blast). 01319_ Knocked back. 01323_ Assault Rifle destroyed. 01325_ Knocked back. 01327_ Field Lobotomy Kit destroyed. 01327_ Knocked back. 01331_ Acquired 8 matter. Map ----- +----------------------------------------------------+ | ???????????????????????????????#" ## #???? | | ???????????????????????????????#""""""?# #?### | | ???????????????????????????????##"###??# #?#"" | | ???????????????????????????????? ??????# #?#"" | | ???????????????????????????????????????# #?#"" | | ??????????????????????????????????????## ###"" | | ??????????????????????????????????????#" | | ??????????????????????????????????????#" | | ??????????????????????????????????????#" | | ??????????????????????????????????????#" | | ???????????????????????########???????#" | | ???????????????????????# """#???????#" | | ???????????????????????#"" """#???????## | | ???????????????????????#"" #????????# | | ???????????????????????#"" #????????#" "X | | ???????????????????????#"" "#????????#" "" | | ???????????????????????# ""#????????#" """" | | ???????????#???????????#"" ""#???????##" ##### | | ?????????? ??????????### ###??????##"" #???? | | ?????????? #####????### ###?######"" #???? | | ????????? """#####X# #"###""""""" ##??? | | ????????? """""" " "" ##?? | | ?????????# "" """ " ### | | ??????????# % " " | | ??????????### | | ????????????### @ | | ??????????????## | | ???????????????## a | | ????????????????##" | | ?????????????????#""" """""" | | ????????????????##" %a ######""" | | ????????????????#"" %% ""##????#####""" | | ???????????????##""" %"""##?????????##""" | | ???????????????#""" aa"""##???????????#""" | | ???????????????#""" a a""#????????????#"" | | ???????????????#"" %###?####??????"""" | | ???????????????#""" % ## ####"?? | | ???????????????#"" %%% """" | | ???????????????##"" t | | ????????????????#"""" | | ????????????????## | | ?????????????????#" " "" | | ?????????????????#"""" ""## ##""" " | | ?????????????????#"" ""###?? #?????" | | ?????????????????#" """"##???????????? | | ?????????????????#""" """#????????????? | | ?????????????????## ""##????????????? | | ??????????????????#"" """##?????????????? | | ??????????????????##""" ##??????????????? | | ???????????????????##"""" ##???????????????? | +----------------------------------------------------+ Best States ------------- Heat Dissipation 25 Energy Generation 10 Energy Capacity 250 Matter Stores 280 Matter Capacity 300 Sight Range 16 Terrain Scan Density 10 Armor Coverage 150 Evasion (%) 55 Recoil Reduction 2 Item Schematics ----------------- None Robot Schematics ------------------ M-13 Machinist | -10/Materials | Hacked Fabricated ------------ Nothing Repaired ---------- Nothing Alien Tech Used ----------------- None Achievements -------------- None Challenges ------------ None Game ------ Seed ChainGodPropulsion Manual? 0 Play Time 00:10:57 Cumulative 728.0 hours Start 2025.05.06 @ 22:29:20 End 2025.05.06 @ 22:38:33 Sessions 1 Manual Loads 0 Difficulty Rogue Special Mode None Game No. 163 Rogue 25 Adventurer 138 Explorer 0 Win Type - Total 11 Types 7/0/1/2/0/0/0/0/1/0 Lore% 77 Gallery% 77 Achievement% 76 Wizard Run 0 Options --------- Layout 2 ASCII 0 Keyboard 0 Movement Mouse Keybinds 0 Fullscreen 1 Font 24/Smallcaps Map View 25x24 Zoom Use 99% Tactical HUD 1 Map Filters NONE Filters NONE Steam 1 RUN: 43d382a9-bbc4-4b60-8ef9-d951f46e44d9